bitfinex-derivatives/quotes_BTCF0:USTF0_20250527
["timestamp","ask_amount","ask_price","bid_price","bid_amount"]
[1748361445845,0.2373357,110200.0,110190.0,1.69735325]
[1748361445846,0.2971357,110200.0,110190.0,1.69735325]
[1748361446048,0.2971357,110200.0,110190.0,1.78952161]
[1748361446249,0.2971357,110200.0,110190.0,1.74622589]
[1748361447048,0.2971357,110200.0,110190.0,1.73622589]
[1748361447350,0.2971357,110200.0,110190.0,1.77622589]
[1748361448451,0.2971357,110200.0,110190.0,0.90913446]
[1748361448749,1.25144168,110200.0,110190.0,0.26204481]
[1748361448942,1.44282736,110200.0,110170.0,0.6877727]
[1748361449143,1.44282736,110200.0,110170.0,0.39997383]
[1748361449144,0.40825488,110180.0,110170.0,0.39997383]
[1748361449339,1.14905488,110180.0,110170.0,0.3078135]
[1748361449543,1.20575488,110180.0,110170.0,0.00149784]
[1748361450245,0.9789489,110180.0,110170.0,0.00149784]
[1748361450444,1.20575488,110180.0,110170.0,0.00149784]
[1748361451047,1.20575488,110180.0,110170.0,0.00449784]
[1748361451354,1.20575488,110180.0,110170.0,0.00749784]
[1748361452042,1.26035488,110180.0,110170.0,0.00749784]
[1748361452352,1.31895488,110180.0,110170.0,0.00749784]
[1748361452855,1.31895488,110180.0,110170.0,0.02550514]
[1748361452856,1.41959488,110180.0,110170.0,0.02550514]
[1748361453043,0.1814816,110160.0,110150.0,0.15108053]
[1748361453241,0.1814981,110150.0,110140.0,0.25308243]
[1748361453451,0.1814981,110150.0,110140.0,0.15244243]
[1748361453452,1.28530408,110150.0,110140.0,0.15244243]
[1748361453641,1.28530408,110150.0,110140.0,0.0602821]
[1748361453849,1.31802348,110150.0,110140.0,0.0013619]
[1748361454049,1.28530408,110150.0,110140.0,0.0013619]
[1748361454353,1.28530408,110150.0,110140.0,0.0033619]
[1748361454558,0.1815146,110140.0,110130.0,0.03150895]
[1748361454852,1.69860058,110140.0,110130.0,0.03150895]
[1748361455749,0.9481146,110140.0,110130.0,0.21304005]
[1748361455949,1.3712746,110140.0,110130.0,0.21304005]
[1748361457150,1.3722746,110140.0,110130.0,0.21304005]
[1748361457752,1.0678746,110140.0,110130.0,0.21304005]
[1748361457950,1.65548058,110140.0,110130.0,0.03150895]
[1748361458456,1.0056346,110140.0,110130.0,0.03150895]
[1748361458647,1.23244058,110140.0,110130.0,0.21304005]
[1748361458846,1.4285946,110140.0,110130.0,0.21304005]
[1748361459052,1.4287146,110140.0,110130.0,0.21304005]
[1748361460058,1.0056346,110140.0,110130.0,0.21304005]
[1748361460356,1.4287146,110140.0,110130.0,0.21304005]
[1748361460558,1.0056346,110140.0,110130.0,0.21304005]
[1748361460753,1.0056346,110140.0,110130.0,0.27104005]
[1748361460951,0.6447146,110140.0,110130.0,0.27104005]
[1748361461155,0.6448346,110140.0,110130.0,0.27104005]
[1748361462849,0.6448346,110140.0,110130.0,0.32984005]
[1748361463361,1.0056346,110140.0,110130.0,0.03150895]
[1748361463847,1.4285946,110140.0,110130.0,0.03150895]
[1748361464054,1.0056346,110140.0,110130.0,0.03150895]
[1748361464250,1.4287146,110140.0,110130.0,0.03150895]
[1748361464556,1.4285946,110140.0,110130.0,0.03150895]
[1748361465152,1.4287146,110140.0,110130.0,0.03150895]
[1748361465352,1.0056346,110140.0,110130.0,0.03150895]
[1748361465552,1.23244058,110140.0,110130.0,0.03150895]
[1748361468153,1.23144058,110140.0,110130.0,0.03150895]
[1748361468362,1.23544058,110140.0,110130.0,0.03150895]
[1748361468565,1.23844058,110140.0,110130.0,0.03150895]
[1748361468753,1.23444058,110140.0,110130.0,0.03150895]
[1748361469062,1.0145146,110140.0,110130.0,0.03250895]
[1748361469271,0.6568346,110140.0,110130.0,0.21403995]
[1748361469456,0.6567146,110140.0,110130.0,0.33363995]
[1748361469765,1.0176346,110140.0,110130.0,0.03250895]
[1748361470766,1.0176346,110140.0,110130.0,0.15330895]
[1748361471269,0.6568346,110140.0,110130.0,0.15330895]
[1748361471468,1.0176346,110140.0,110130.0,0.15330895]
[1748361472357,0.6568346,110140.0,110130.0,0.15330895]
[1748361472962,1.0176346,110140.0,110130.0,0.15330895]
[1748361474058,0.6568346,110140.0,110130.0,0.15330895]
[1748361474259,0.6010346,110140.0,110130.0,0.15330895]
[1748361474561,0.5710346,110140.0,110130.0,0.15330895]
[1748361475160,0.5710346,110140.0,110130.0,0.25382895]
[1748361475962,0.6313346,110140.0,110130.0,0.29775244]
[1748361476261,0.6313346,110140.0,110130.0,0.25382895]
[1748361476653,0.6313346,110140.0,110130.0,0.29775244]
[1748361477167,0.9921346,110140.0,110130.0,0.29775244]
[1748361477669,0.6313346,110140.0,110130.0,0.29775244]
[1748361478658,0.6313346,110140.0,110130.0,0.25382895]
[1748361479564,0.6313346,110140.0,110130.0,0.31274915]
[1748361480453,0.9921346,110140.0,110130.0,0.25274915]
[1748361480655,1.21894058,110140.0,110130.0,0.25274915]
[1748361481266,0.9921346,110140.0,110130.0,0.31174915]
[1748361482283,0.9921346,110140.0,110130.0,0.32174915]
[1748361482284,1.0421346,110140.0,110130.0,0.32174915]
[1748361482775,0.6813346,110140.0,110130.0,0.86407865]
[1748361482967,0.6209146,110140.0,110130.0,0.86407865]
[1748361483173,0.6210346,110140.0,110130.0,0.62362895]
[1748361484368,0.6210346,110140.0,110130.0,0.40330895]
[1748361484666,1.26774058,110140.0,110130.0,0.04539392]
[1748361485072,1.46831691,110140.0,110130.0,0.04539392]
[1748361485272,1.46819691,110140.0,110130.0,0.04539392]
[1748361485569,1.46831691,110140.0,110130.0,0.04539392]
[1748361486269,1.04523691,110140.0,110130.0,0.04539392]
[1748361486568,0.1815295,110130.0,110120.0,0.05911005]
[1748361486766,1.0844295,110130.0,110120.0,0.05911005]
[1748361487464,1.0844295,110130.0,110120.0,0.15963005]
[1748361487665,1.0844295,110130.0,110120.0,0.27423005]
[1748361487968,1.0844295,110130.0,110110.0,0.67885529]
[1748361487969,0.181546,110120.0,110110.0,0.01505843]
[1748361488264,1.57931198,110120.0,110110.0,0.00149858]
[1748361489163,1.58231198,110120.0,110110.0,0.10205858]
[1748361489368,1.58231198,110120.0,110100.0,0.1587]
[1748361489369,0.1815624,110110.0,110100.0,0.1]
[1748361489568,1.22056838,110110.0,110100.0,1e-07]
[1748361489865,1.22056838,110110.0,110100.0,9e-08]
[1748361490288,0.1816118,110080.0,110070.0,0.26121619]
[1748361490461,0.3916118,110080.0,110070.0,0.76812756]
[1748361490661,0.3916118,110080.0,110070.0,0.34516756]
[1748361490662,0.4523118,110080.0,110070.0,0.34516756]
[1748361490857,0.4523118,110080.0,110060.0,0.07511731]
[1748361490858,1.50807196,110080.0,110060.0,0.07511731]
[1748361491161,0.82993428,110070.0,110060.0,0.00136298]
[1748361491359,0.6730283,110070.0,110060.0,0.00136298]
[1748361491560,0.5516283,110070.0,110060.0,1.34010243]
[1748361491860,0.2117483,110070.0,110060.0,1.35973366]
[1748361492168,0.2117483,110070.0,110060.0,1.24530768]
[1748361492472,0.2117483,110070.0,110060.0,0.87799386]
[1748361492664,0.2702483,110070.0,110060.0,0.8751447]
[1748361492867,0.1817483,110070.0,110060.0,1.2459447]
[1748361493071,0.1817483,110070.0,110060.0,0.7223447]
[1748361493269,0.2402483,110070.0,110060.0,0.7223447]
[1748361493567,0.2402483,110070.0,110060.0,0.8229047]
[1748361493977,0.2402483,110070.0,110060.0,0.75423713]
[1748361494169,0.2402483,110070.0,110060.0,0.85479713]
[1748361494557,0.2402483,110070.0,110060.0,0.85779713]
[1748361494558,0.1817483,110070.0,110060.0,0.85779713]
[1748361494765,0.1826283,110070.0,110060.0,0.85779713]
[1748361494961,0.001,110070.0,110060.0,0.85779713]
[1748361495272,0.001,110070.0,110060.0,0.95779713]
[1748361495668,0.001,110070.0,110060.0,1.29071672]
[1748361495669,0.00112,110070.0,110060.0,1.29071672]
[1748361495874,0.003,110070.0,110060.0,1.29071672]
[1748361496073,0.00312,110070.0,110060.0,1.29071672]
[1748361496473,0.00312,110070.0,110060.0,1.31071672]
[1748361496474,0.00112,110070.0,110060.0,1.31071672]
[1748361497176,0.00112,110070.0,110060.0,1.07758846]
[1748361497378,0.00012,110070.0,110060.0,1.07858846]
[1748361498364,0.1917483,110070.0,110060.0,0.25738776]
[1748361498578,0.1817483,110070.0,110060.0,0.33903256]
[1748361498773,0.1817483,110070.0,110060.0,0.45763256]
[1748361498976,0.2381483,110070.0,110060.0,0.45763256]
[1748361499578,0.05652,110070.0,110060.0,1.24151256]
[1748361499768,0.00136331,110080.0,110060.0,1.39299602]
[1748361499976,0.29478251,110080.0,110070.0,0.7197282]
[1748361500472,0.00136331,110080.0,110070.0,0.7297282]
[1748361500673,0.00148331,110080.0,110070.0,0.87936721]
[1748361500878,0.00136331,110080.0,110070.0,0.87936721]
[1748361501083,0.00248331,110080.0,110070.0,1.90940721]
[1748361501282,0.00248331,110080.0,110070.0,1.91940721]
[1748361501475,0.00348331,110080.0,110070.0,1.91940721]
[1748361501776,0.00448331,110080.0,110070.0,1.91940721]
[1748361501979,0.00448331,110080.0,110070.0,2.51248721]
[1748361502174,0.00148331,110080.0,110070.0,2.51248721]
[1748361503270,0.00148331,110080.0,110070.0,2.61296721]
[1748361503777,0.18309491,110080.0,110070.0,2.61296721]
[1748361504581,0.00148331,110080.0,110070.0,2.61296721]
[1748361505076,0.18309491,110080.0,110070.0,2.65938121]
[1748361505297,0.18309491,110080.0,110070.0,2.61296721]
[1748361505685,0.18309491,110080.0,110070.0,2.65938912]
[1748361505978,0.00148331,110080.0,110070.0,2.89251738]
[1748361506177,0.00148331,110080.0,110070.0,2.93372637]
[1748361506679,0.00148331,110080.0,110070.0,3.19964103]
[1748361506883,0.00136331,110080.0,110070.0,3.19964103]
[1748361507084,0.00148331,110080.0,110070.0,3.19964103]
[1748361507582,0.00148331,110080.0,110070.0,3.09964103]
[1748361507781,0.00148331,110080.0,110070.0,3.19964103]
[1748361508570,0.00148331,110080.0,110070.0,3.25249304]
[1748361508770,0.00148331,110080.0,110070.0,2.97870451]
[1748361508976,0.00148331,110080.0,110070.0,3.16040103]
[1748361509276,0.00148331,110080.0,110070.0,1.64596914]
[1748361509582,0.00148331,110080.0,110070.0,2.35130017]
[1748361509583,0.18309511,110080.0,110070.0,2.35130017]
[1748361509784,0.18309511,110080.0,110070.0,2.77438017]
[1748361510079,0.05658331,110080.0,110070.0,2.77438017]
[1748361510282,0.23819511,110080.0,110070.0,2.77438017]
[1748361510468,0.05658331,110080.0,110070.0,2.77438017]
[1748361511384,0.05658331,110080.0,110070.0,2.86644088]
[1748361511974,0.05658331,110080.0,110070.0,2.44288088]
[1748361512175,0.05658331,110080.0,110070.0,2.25203288]
[1748361512176,0.23819511,110080.0,110070.0,2.25203288]
[1748361512381,0.23819511,110080.0,110070.0,2.77559288]
[1748361513277,0.23819511,110080.0,110070.0,2.77565802]
[1748361513780,0.23819511,110080.0,110070.0,2.73656408]
[1748361514584,0.24261742,110080.0,110070.0,2.73656408]
[1748361515085,0.24261742,110080.0,110070.0,2.21300408]
[1748361515387,0.24261742,110080.0,110070.0,2.73656408]
[1748361515582,0.24261742,110080.0,110070.0,2.21300408]
[1748361515792,0.06100562,110080.0,110070.0,2.31681993]
[1748361515974,0.06100562,110080.0,110070.0,2.87809347]
[1748361516177,0.06100562,110080.0,110070.0,2.98340962]
[1748361516578,0.06100562,110080.0,110070.0,3.40702372]
[1748361516784,0.06088562,110080.0,110070.0,3.2917]
[1748361517082,0.06100562,110080.0,110070.0,3.18638385]
[1748361517474,0.06100562,110080.0,110070.0,3.05900225]
[1748361517674,0.06100562,110080.0,110070.0,3.28924183]
[1748361517884,0.06100562,110080.0,110070.0,3.22627915]
[1748361518072,0.06100562,110080.0,110070.0,2.99930333]
[1748361518277,0.06100562,110080.0,110070.0,3.09930333]
[1748361518472,0.06100562,110080.0,110070.0,2.88160963]
[1748361518473,0.24261752,110080.0,110070.0,2.88160963]
[1748361518779,0.30101752,110080.0,110070.0,2.88160963]
[1748361519185,0.35661752,110080.0,110070.0,2.88160963]
[1748361520188,0.35661752,110080.0,110070.0,3.10894232]
[1748361521080,0.17500562,110080.0,110070.0,3.20894232]
[1748361521680,0.17500562,110080.0,110070.0,3.20901901]
[1748361521876,0.03310231,110080.0,110070.0,2.77634701]
[1748361522082,0.181549,110120.0,110110.0,0.1815622]
[1748361522382,0.181549,110120.0,110110.0,0.7832434]
[1748361522383,0.2723261,110120.0,110110.0,0.7832434]
[1748361522582,0.2723261,110120.0,110110.0,0.88668117]
[1748361522980,0.181549,110120.0,110110.0,0.88668117]
[1748361523180,0.181669,110120.0,110110.0,0.88668117]
[1748361523391,0.181549,110120.0,110110.0,0.88668117]
[1748361523690,0.181669,110120.0,110110.0,0.88668117]
[1748361523885,0.181549,110120.0,110110.0,0.88668117]
[1748361524092,0.183669,110120.0,110110.0,0.88668117]
[1748361524282,0.188669,110120.0,110110.0,0.88768117]
[1748361524879,0.185669,110120.0,110110.0,0.88668117]
[1748361525085,0.246169,110120.0,110110.0,0.88668117]
[1748361525287,0.305569,110120.0,110110.0,0.88668117]
[1748361525783,0.12402,110120.0,110110.0,0.9866321]
[1748361525985,0.12402,110120.0,110110.0,1.1934369]
[1748361526186,0.3055657,110120.0,110110.0,1.08951663]
[1748361526580,0.3054457,110120.0,110110.0,1.08951663]
[1748361526780,0.12402,110120.0,110110.0,1.08951663]
[1748361526992,0.3055657,110120.0,110110.0,1.08951663]
[1748361527196,0.3035657,110120.0,110110.0,1.09051663]
[1748361527387,0.3015657,110120.0,110110.0,1.09251663]
[1748361527899,0.3015657,110120.0,110110.0,0.65497922]
[1748361528080,0.3015657,110120.0,110110.0,1.25211231]
[1748361528493,0.3015657,110120.0,110110.0,0.89131231]
[1748361528987,0.3015657,110120.0,110110.0,0.12851011]
[1748361529197,0.3015657,110120.0,110110.0,0.83351231]
[1748361529393,0.6723657,110120.0,110110.0,0.22899011]
[1748361529695,0.3115657,110120.0,110110.0,0.22899011]
[1748361529890,0.66678801,110120.0,110110.0,0.22898365]
[1748361530192,0.66678801,110120.0,110110.0,0.18470365]
[1748361530395,0.66678801,110120.0,110110.0,0.28418365]
[1748361530591,0.66878801,110120.0,110110.0,0.28418365]
[1748361531500,0.66878801,110120.0,110110.0,0.28218365]
[1748361531695,0.67078801,110120.0,110110.0,0.28218365]
[1748361531891,0.6663657,110120.0,110110.0,0.28218365]
[1748361532802,0.67078801,110120.0,110110.0,0.46374585]
[1748361533013,0.30998801,110120.0,110110.0,0.46374585]
[1748361533195,0.30998801,110120.0,110110.0,0.88424585]
[1748361533502,0.30986801,110120.0,110110.0,0.94014585]
[1748361533707,0.30998801,110120.0,110110.0,0.94014585]
[1748361534798,0.3054457,110120.0,110110.0,0.94014585]
[1748361535192,0.3055657,110120.0,110110.0,0.94014585]
[1748361535898,0.30998801,110120.0,110110.0,1.00800761]
[1748361537499,0.30998801,110120.0,110110.0,1.03246612]
[1748361538296,0.30998801,110120.0,110110.0,0.94017437]
[1748361540101,0.06904231,110120.0,110110.0,0.94017437]
[1748361540306,0.06892231,110120.0,110110.0,0.95017437]
[1748361540503,0.06904231,110120.0,110110.0,0.8912035]
[1748361540702,0.06904231,110120.0,110110.0,1.86648077]
[1748361540703,0.00854231,110120.0,110110.0,1.86648077]
[1748361540909,0.004,110120.0,110110.0,1.48265255]
[1748361541111,0.00412,110120.0,110110.0,1.64595921]
[1748361541299,0.06392,110120.0,110110.0,1.64595921]
[1748361541612,0.06392,110120.0,110110.0,1.59319994]
[1748361542203,0.06192,110120.0,110110.0,1.59319994]
[1748361542513,0.05992,110120.0,110110.0,1.72021361]
[1748361542711,0.00136283,110150.0,110110.0,2.8864852]
[1748361542914,0.05596283,110150.0,110140.0,0.3608]
[1748361543107,0.05596283,110150.0,110140.0,1.83370731]
[1748361543108,0.00148283,110150.0,110140.0,1.83370731]
[1748361543414,0.00148283,110150.0,110140.0,1.92740124]
[1748361543415,0.00136283,110150.0,110140.0,1.92740124]
[1748361543711,0.00012,110150.0,110140.0,2.23139628]
[1748361543902,0.00012,110150.0,110140.0,2.22041005]
[1748361544209,0.00012,110150.0,110140.0,2.01041005]
[1748361544409,0.00012,110150.0,110140.0,2.13742372]
[1748361544604,0.00012,110150.0,110140.0,2.01041005]
[1748361544810,0.00012,110150.0,110140.0,2.06288878]
[1748361545499,0.00013626,110160.0,110150.0,0.1814963]
[1748361545815,0.00013626,110160.0,110150.0,0.84951422]
[1748361546004,0.05675626,110160.0,110150.0,0.90811422]
[1748361546206,0.23823616,110160.0,110150.0,0.90811422]
[1748361546509,0.23823616,110160.0,110150.0,1.33915925]
[1748361546707,0.29493616,110160.0,110150.0,1.35252198]
[1748361547015,0.29493616,110160.0,110150.0,0.82936198]
[1748361547217,0.29493616,110160.0,110150.0,1.33915925]
[1748361547914,0.29693616,110160.0,110150.0,1.33915925]
[1748361549610,0.29693616,110160.0,110150.0,1.3843312]
[1748361550205,0.29693616,110160.0,110150.0,1.3842912]
[1748361550402,0.45124815,110180.0,110170.0,0.1814634]
[1748361550403,0.09044815,110180.0,110170.0,0.1814634]
[1748361550603,0.14154815,110180.0,110170.0,1.1134634]
[1748361550799,0.08554815,110180.0,110170.0,1.85360216]
[1748361551008,0.281414,110200.0,110190.0,0.1814305]
[1748361551199,0.281414,110200.0,110190.0,0.6626305]
[1748361551200,0.337414,110200.0,110190.0,0.6626305]
[1748361551402,0.156,110200.0,110190.0,0.7191305]
[1748361551605,0.337534,110200.0,110190.0,0.77294128]
[1748361551812,0.337414,110200.0,110190.0,0.3768]
[1748361552013,0.337414,110200.0,110190.0,0.70270544]
[1748361552204,0.393034,110200.0,110190.0,0.74699256]
[1748361552608,0.397034,110200.0,110190.0,0.74699256]
[1748361552917,0.437034,110200.0,110190.0,0.74699256]
[1748361553213,0.439034,110200.0,110190.0,0.74699256]
[1748361553610,0.439034,110200.0,110190.0,0.77633954]
[1748361556608,0.439034,110200.0,110190.0,0.7322646]
[1748361556908,0.439034,110200.0,110190.0,0.77633954]
[1748361557310,0.439034,110200.0,110190.0,0.88723954]
[1748361557510,0.439034,110200.0,110190.0,0.90921773]
[1748361558419,0.439034,110200.0,110190.0,0.86514279]
[1748361558907,0.439034,110200.0,110190.0,0.8431646]
[1748361559410,0.25762,110200.0,110190.0,0.8431646]
[1748361561021,0.21762,110200.0,110190.0,0.8531646]
[1748361561214,0.21762,110200.0,110190.0,0.89723954]
[1748361561414,0.2175,110200.0,110190.0,0.89723954]
[1748361562214,0.21362,110200.0,110190.0,0.89723954]
[1748361562613,0.21362,110200.0,110190.0,0.86789256]
[1748361562816,0.21362,110200.0,110190.0,1.46165345]
[1748361563014,0.15562,110200.0,110190.0,1.56364577]
[1748361563414,0.1555,110200.0,110190.0,1.51738929]
[1748361563617,0.10012,110200.0,110190.0,1.32521762]
[1748361563821,0.1546,110200.0,110190.0,1.90801762]
[1748361564023,0.15472,110200.0,110190.0,1.90701762]
[1748361564229,0.15472,110200.0,110190.0,1.95396748]
[1748361564417,0.15472,110200.0,110190.0,1.91001762]
[1748361564928,0.1,110200.0,110190.0,1.38721762]
[1748361565116,0.10012,110200.0,110190.0,1.90997762]
[1748361565615,0.21472,110200.0,110190.0,1.90997762]
[1748361566726,0.15782,110200.0,110190.0,2.23684399]
[1748361566918,0.1,110200.0,110190.0,2.23684399]
[1748361567121,0.10012,110200.0,110190.0,2.23684399]
[1748361567315,0.10012,110200.0,110190.0,2.0687884]
[1748361567523,0.15722,110200.0,110190.0,2.29565477]
[1748361567919,0.1571,110200.0,110190.0,2.29565477]
[1748361568120,0.1571,110200.0,110190.0,2.19565477]
[1748361568325,0.15722,110200.0,110190.0,1.9687884]
[1748361570226,0.15722,110200.0,110190.0,2.19565477]
[1748361570421,0.15722,110200.0,110190.0,2.25669333]
[1748361570930,0.21532,110200.0,110190.0,2.25669333]
[1748361572124,0.15722,110200.0,110190.0,2.25669333]
[1748361572330,0.15722,110200.0,110190.0,2.13684399]
[1748361572529,0.10012,110200.0,110190.0,2.21041727]
[1748361572843,0.1,110200.0,110190.0,2.31041727]
[1748361573033,0.10012,110200.0,110190.0,2.31041727]
[1748361575630,0.0564,110220.0,110210.0,0.1813977]
[1748361575926,0.0564,110220.0,110210.0,2.04137988]
[1748361576121,0.0564,110220.0,110210.0,2.14987988]
[1748361576122,0.05652,110220.0,110210.0,2.14987988]
[1748361576321,0.05652,110220.0,110210.0,1.83987988]
[1748361576527,0.05652,110220.0,110210.0,1.92987988]
[1748361576727,0.11072,110220.0,110210.0,1.92987988]
[1748361577333,0.3421013,110220.0,110210.0,0.77451351]
[1748361578034,0.3421013,110220.0,110210.0,0.78823763]
[1748361578233,0.3431013,110220.0,110210.0,0.78823763]
[1748361578534,0.91069968,110220.0,110210.0,0.01372412]
[1748361578738,1.60149968,110220.0,110210.0,0.07360937]
[1748361579033,1.60149968,110220.0,110210.0,0.05152581]
[1748361579544,0.1813978,110210.0,110200.0,0.04430202]
[1748361579727,1.77222417,110210.0,110200.0,0.27215272]
[1748361579927,2.02805611,110210.0,110200.0,0.27215272]
[1748361580432,2.02805611,110210.0,110200.0,0.22571622]
[1748361580632,2.02805611,110210.0,110200.0,0.33113369]
[1748361580846,1.4546178,110210.0,110200.0,0.33213369]
[1748361581139,1.0938178,110210.0,110200.0,0.28790637]
[1748361581529,1.0939378,110210.0,110200.0,0.28790637]
[1748361581730,1.4557378,110210.0,110200.0,0.28790637]
[1748361582531,1.5137378,110210.0,110200.0,0.28790637]
[1748361582728,2.08717611,110210.0,110200.0,0.10649217]
[1748361582931,2.08717611,110210.0,110200.0,0.04436638]
[1748361583135,2.08817611,110210.0,110200.0,0.00013626]
[1748361583341,0.1814142,110200.0,110190.0,0.04559149]
[1748361583538,1.72259251,110200.0,110190.0,0.04559149]
[1748361583743,0.1814471,110180.0,110170.0,0.2870611]
[1748361583938,0.7322471,110180.0,110170.0,0.2870611]
[1748361584145,0.7322471,110180.0,110170.0,0.3329066]
[1748361584146,0.7899471,110180.0,110170.0,0.3329066]
[1748361584550,0.7899471,110180.0,110170.0,0.27402228]
[1748361585146,0.2477,110180.0,110170.0,0.6937066]
[1748361585346,0.4291471,110180.0,110170.0,0.8073066]
[1748361585544,0.24782,110180.0,110170.0,1.2364666]
[1748361586051,0.2477,110180.0,110170.0,1.2364666]
[1748361586232,0.4291471,110180.0,110170.0,1.2404666]
[1748361586642,0.4292671,110180.0,110170.0,1.2404666]
[1748361587145,0.4292671,110180.0,110170.0,1.3004666]
[1748361587146,0.2392671,110180.0,110170.0,1.3004666]
[1748361589246,0.1815671,110180.0,110170.0,1.3004666]
[1748361589635,0.1815671,110180.0,110170.0,1.2984666]
[1748361590141,0.1825671,110180.0,110170.0,1.2964666]
[1748361590347,0.1824471,110180.0,110170.0,1.33544541]
[1748361590538,0.1825671,110180.0,110170.0,1.40899626]
[1748361590745,0.1825671,110180.0,110170.0,1.51062694]
[1748361590942,0.3442671,110180.0,110170.0,1.42527534]
[1748361591146,0.3442671,110180.0,110170.0,1.25413215]
[1748361591345,0.3442671,110180.0,110170.0,0.68256948]
[1748361591543,0.3442671,110180.0,110170.0,0.66256948]
[1748361591741,0.3985671,110180.0,110170.0,0.66256948]
[1748361591940,0.3985671,110180.0,110170.0,0.30176948]
[1748361592142,0.3995671,110180.0,110170.0,0.48223308]
[1748361592443,0.3995671,110180.0,110170.0,0.30076948]
[1748361592638,0.3995671,110180.0,110170.0,0.48223308]
[1748361593048,0.3995671,110180.0,110170.0,0.48221227]
[1748361593642,0.3995671,110180.0,110170.0,0.39005134]
[1748361593947,0.3995671,110180.0,110170.0,0.2848091]
[1748361594454,0.1814636,110170.0,110160.0,0.85148537]
[1748361594753,0.3204636,110170.0,110160.0,1.06475788]
[1748361595250,2.01509391,110170.0,110160.0,0.15575653]
[1748361595443,2.01509391,110170.0,110160.0,0.00013626]
[1748361595644,2.01509391,110170.0,110160.0,0.19161636]
[1748361595844,2.01509391,110170.0,110160.0,0.18261636]
[1748361596654,2.01509391,110170.0,110160.0,0.22896759]
[1748361597252,2.01509391,110170.0,110160.0,0.22896836]
[1748361597446,0.6504636,110170.0,110160.0,0.22896836]
[1748361597648,0.6504636,110170.0,110160.0,0.29516836]
[1748361598150,0.23912,110170.0,110160.0,0.66561636]
[1748361598457,0.23912,110170.0,110160.0,0.67561636]
[1748361598458,0.4204636,110170.0,110160.0,0.67561636]
[1748361598656,0.4205836,110170.0,110160.0,0.67561636]
[1748361599660,0.23912,110170.0,110160.0,0.72194053]
[1748361599844,0.1815836,110170.0,110160.0,0.71882046]
[1748361600152,0.1815836,110170.0,110160.0,0.81098139]
[1748361600552,0.1815836,110170.0,110160.0,0.67249629]
[1748361600760,0.1126,110180.0,110160.0,0.5348769]
[1748361600940,0.1926,110180.0,110170.0,0.1065]
[1748361601147,0.4647837,110180.0,110170.0,0.2879637]
[1748361601648,0.4647837,110180.0,110170.0,0.7534437]
[1748361601844,0.4204205,110180.0,110170.0,0.7534437]
[1748361602250,0.4214205,110180.0,110170.0,0.7534437]
[1748361602445,0.082,110180.0,110170.0,0.7534437]
[1748361602644,0.082,110180.0,110170.0,0.7634437]
[1748361602863,0.002,110180.0,110170.0,0.7734437]
[1748361603042,0.002,110180.0,110170.0,0.8283437]
[1748361603242,0.001,110180.0,110170.0,0.8283437]
[1748361604045,0.001,110180.0,110170.0,1.0383437]
[1748361604251,0.18156776,110190.0,110180.0,0.1804472]
[1748361604554,0.18156776,110190.0,110180.0,0.6945472]
[1748361605050,0.00013626,110190.0,110180.0,0.7045472]
[1748361605254,0.18156696,110190.0,110180.0,0.93716887]
[1748361605549,0.18156696,110190.0,110180.0,0.4484272]
[1748361605755,0.18256696,110190.0,110180.0,0.4384272]
[1748361606053,0.18368696,110190.0,110180.0,0.4384272]
[1748361606246,0.53368696,110190.0,110180.0,0.4384272]
[1748361606448,0.53268696,110190.0,110180.0,0.4394272]
[1748361606648,0.89348696,110190.0,110180.0,0.4004272]
[1748361606952,0.89348696,110190.0,110180.0,0.44681023]
[1748361607154,0.89348696,110190.0,110180.0,0.34213023]
[1748361607452,0.89348696,110190.0,110180.0,0.04738303]
[1748361607453,1.32376696,110190.0,110180.0,0.04738303]
[1748361607659,1.32376696,110190.0,110180.0,0.001]
[1748361608251,1.32276696,110190.0,110180.0,0.002]
[1748361609043,1.66352296,110190.0,110180.0,0.001]
[1748361609249,0.1814472,110180.0,110170.0,0.05353626]
[1748361609444,0.9022472,110180.0,110170.0,0.05353626]
[1748361609658,0.9022472,110180.0,110170.0,0.23499986]
[1748361609853,0.9022472,110180.0,110170.0,0.10833626]
[1748361610051,1.3326472,110180.0,110170.0,0.00013626]
[1748361610452,1.3326472,110180.0,110170.0,0.18159986]
[1748361610651,1.3326872,110180.0,110170.0,0.18159986]
[1748361610858,1.3326872,110180.0,110170.0,0.05493626]
[1748361611365,1.3336872,110180.0,110170.0,0.05493626]
[1748361611554,1.3346872,110180.0,110170.0,0.2658675]
[1748361612050,1.3346872,110180.0,110170.0,0.3200675]
[1748361612247,1.3346872,110180.0,110170.0,0.1933039]
[1748361612449,0.5434472,110180.0,110170.0,0.38950314]
[1748361612858,0.9042472,110180.0,110170.0,0.15333954]
[1748361613154,0.9042472,110180.0,110170.0,0.02961468]
[1748361613355,0.5434472,110180.0,110170.0,0.04002164]
[1748361613664,1.3355272,110180.0,110170.0,0.27548524]
[1748361613865,1.3354072,110180.0,110170.0,0.32438628]
[1748361614061,1.3355272,110180.0,110170.0,0.36858956]
[1748361614456,1.3355272,110180.0,110170.0,0.42268956]
[1748361614657,0.5435672,110180.0,110170.0,0.50345106]
[1748361614863,0.5434472,110180.0,110170.0,0.37378775]
[1748361615062,0.5435672,110180.0,110170.0,0.69624104]
[1748361615264,0.3135672,110180.0,110170.0,0.90445221]
[1748361615565,0.3135672,110180.0,110170.0,0.96445221]
[1748361615757,0.3135672,110180.0,110170.0,1.32525221]
[1748361615958,0.3135672,110180.0,110170.0,1.32525816]
[1748361615959,0.00212,110180.0,110170.0,1.32525816]
[1748361616159,0.1835672,110180.0,110170.0,1.32524815]
[1748361616355,0.002,110180.0,110170.0,1.11715626]
[1748361616654,0.1835672,110180.0,110170.0,1.21715626]
[1748361616861,0.002,110180.0,110170.0,1.21715626]
[1748361617158,0.00212,110180.0,110170.0,1.34679564]
[1748361617365,0.1825672,110180.0,110170.0,1.01517397]
[1748361617667,0.1925672,110180.0,110170.0,1.19890908]
[1748361617964,0.1925672,110180.0,110170.0,1.11815626]
[1748361618555,0.1925672,110180.0,110170.0,1.16703081]
[1748361618754,0.1915672,110180.0,110170.0,1.23844361]
[1748361619762,0.1915672,110180.0,110170.0,1.34197478]
[1748361620663,0.1915672,110180.0,110170.0,1.34197345]
[1748361620964,0.01012,110180.0,110170.0,1.34197345]
[1748361621167,0.01012,110180.0,110170.0,1.23844185]
[1748361621367,0.01,110180.0,110170.0,1.30428169]
[1748361621570,0.01012,110180.0,110170.0,1.29387394]
[1748361621867,0.01012,110180.0,110170.0,1.3537535]
[1748361622059,0.1915672,110180.0,110170.0,1.3537535]
[1748361622259,0.1915672,110180.0,110170.0,1.7855135]
[1748361622659,0.1915672,110180.0,110170.0,1.77397388]
[1748361622861,0.2432672,110180.0,110170.0,1.77397388]
[1748361623267,0.06182,110180.0,110170.0,1.77397388]
[1748361623572,0.2432671,110180.0,110170.0,1.59976217]
[1748361623771,0.2432671,110180.0,110170.0,1.59976285]
[1748361623961,0.2432671,110180.0,110170.0,1.24871109]